bitfinex-derivatives/quotes_SOLF0:USTF0_20260305
["timestamp","ask_amount","ask_price","bid_price","bid_amount"]
[1772715074361,9.771,92.09,92.056,3.82893605]
[1772715076766,9.771,92.09,92.041,3.82893605]
[1772715078974,9.771,92.09,92.043,3.71763618]
[1772715080572,9.771,92.09,92.05,4.14830883]
[1772715080877,9.772,92.082,92.043,3.71763618]
[1772715081675,13.52423812,92.082,92.043,3.71763618]
[1772715082370,13.52423812,92.082,91.998,19.562]
[1772715082371,4.14830883,92.07,92.021,3.71763618]
[1772715082577,3.75223812,92.079,92.021,3.71763618]
[1772715083479,9.773,92.074,92.03,4.14830883]
[1772715083979,3.75223812,92.073,92.021,3.71763618]
[1772715084373,7.90054695,92.07,92.021,3.71763618]
[1772715085379,17.67354695,92.07,92.022,9.778]
[1772715085582,13.52523812,92.07,92.023,3.71763618]
[1772715085979,9.772,92.078,92.031,3.71763618]
[1772715086179,3.75223812,92.079,92.031,3.71763618]
[1772715086476,3.75223812,92.079,92.021,3.71763618]
[1772715086477,9.774,92.066,92.021,3.71763618]
[1772715086781,3.75223812,92.059,92.01,7.86594501]
[1772715087184,3.75223812,92.059,92.01,3.71763618]
[1772715087377,3.75223812,92.058,92.01,13.49663618]
[1772715087875,3.75223812,92.074,92.03,4.14830883]
[1772715088077,3.75223812,92.074,92.03,3.71763618]
[1772715088582,4.14830883,92.07,92.03,3.71763618]
[1772715088777,4.14830883,92.06,92.03,3.71763618]
[1772715089078,3.59943241,92.059,92.011,3.77130273]
[1772715090271,16.66410282,92.108,92.011,3.77130273]
[1772715090479,4.14830883,92.07,92.013,3.77130273]
[1772715090676,3.59943241,92.099,92.031,3.77130273]
[1772715090870,9.772,92.082,92.04,9.776]
[1772715091177,4.14830883,92.08,92.031,3.77130273]
[1772715091578,4.14830883,92.08,92.038,9.777]
[1772715092680,7.74774124,92.08,92.031,3.77130273]
[1772715092977,3.59943241,92.059,92.01,3.77130273]
[1772715093579,13.37443241,92.058,92.01,3.77130273]
[1772715093779,3.59943241,92.057,92.01,3.77130273]
[1772715094076,7.74774124,92.05,92.003,9.78]
[1772715094686,7.74774124,92.05,91.99,4.14830883]
[1772715094687,3.59943241,92.049,91.995,3.77130273]
[1772715095075,4.14830883,92.04,91.995,3.77130273]
[1772715095675,3.59943241,92.039,91.995,3.77130273]
[1772715096182,4.14830883,92.02,91.972,3.77130273]
[1772715096583,3.59943241,92.029,91.972,3.77130273]
[1772715097088,3.59943241,92.029,91.979,9.783]
[1772715098385,7.74774124,92.05,91.991,3.77130273]
[1772715098584,3.59943241,92.05,92.001,3.77130273]
[1772715098983,3.59943241,92.05,92.01,9.78]
[1772715099288,3.59943241,92.064,92.011,3.77130273]
[1772715099484,4.14830883,92.06,92.011,3.77130273]
[1772715100388,4.14830883,92.06,92.018,9.779]
[1772715100989,3.59943241,92.064,92.019,3.77130273]
[1772715102191,4.14830883,92.07,92.019,3.77130273]
[1772715102483,4.14830883,92.07,92.021,3.77130273]
[1772715102686,7.74774124,92.07,92.021,3.77130273]
[1772715103288,7.74774124,92.07,92.022,9.778]
[1772715104489,7.74774124,92.07,92.021,3.77130273]
[1772715104688,9.774,92.068,92.021,3.77130273]
[1772715105490,3.59943241,92.07,92.021,3.77130273]
[1772715106180,7.74774124,92.07,92.021,3.77130273]
[1772715106390,9.773,92.069,92.021,3.77130273]
[1772715106980,9.774,92.063,92.021,3.77130273]
[1772715107185,3.59943241,92.059,92.005,3.77130273]
[1772715108891,9.776,92.047,92.005,3.77130273]
[1772715110294,4.14830883,92.05,92.005,3.77130273]
[1772715110489,10.10616258,92.096,91.98,3.73959909]
[1772715110696,3.83225156,92.019,91.963,3.73959909]
[1772715111195,3.83225156,92.017,91.963,3.73959909]
[1772715111495,4.14830883,92.01,91.963,3.73959909]
[1772715112190,4.14830883,92.04,91.991,3.73959909]
[1772715112588,4.14830883,92.03,91.991,3.73959909]
[1772715112788,4.14830883,92.03,91.98,4.14830883]
[1772715113193,4.14830883,92.03,91.976,3.73959909]
[1772715114303,4.14830883,92.02,91.976,3.73959909]
[1772715114495,4.15734335,92.02,91.976,3.73959909]
[1772715115302,4.15734335,92.01,91.955,3.73959909]
[1772715115596,4.15734335,92.01,91.961,3.73959909]
[1772715115798,3.83225156,92.009,91.961,3.73959909]
[1772715116292,4.15734335,92.0,91.961,3.73959909]
[1772715117500,3.83225156,91.999,91.95,9.786]
[1772715119009,3.83225156,91.999,91.957,9.785]
[1772715119207,3.83225156,91.999,91.9,19.583]
[1772715119208,3.83225156,92.019,91.961,3.73959909]
[1772715119403,3.83225156,92.019,91.964,9.784]
[1772715119817,3.83225156,92.009,91.964,9.784]
[1772715120908,3.83225156,92.009,91.961,3.73959909]
[1772715121507,3.83225156,92.009,91.971,9.784]
[1772715121910,3.83225156,91.999,91.95,4.15734335]
[1772715122212,3.83225156,91.979,91.927,3.73959909]
[1772715122417,4.15734335,91.96,91.911,3.73959909]
[1772715122913,4.15734335,91.98,91.938,9.787]
[1772715123206,4.15734335,91.98,91.925,3.73959909]
[1772715123207,4.15734335,91.98,91.93,4.15734335]
[1772715123415,3.83225156,91.985,91.931,3.73959909]
[1772715123718,3.83225156,91.969,91.916,3.73959909]
[1772715123915,3.83225156,92.023,91.951,3.73959909]
[1772715124213,3.83225156,92.009,91.961,9.785]
[1772715124413,3.83225156,92.009,91.951,3.73959909]
[1772715124607,4.15734335,92.0,91.951,3.73959909]
[1772715124806,3.83225156,91.989,91.94,4.15734335]
[1772715125014,4.15734335,91.98,91.934,3.73959909]
[1772715127016,9.783,91.977,91.934,3.73959909]
[1772715127420,4.15734335,91.98,91.934,3.73959909]
[1772715127613,9.783,91.979,91.934,3.73959909]
[1772715128319,9.783,91.979,91.94,4.15734335]
[1772715128517,3.83225156,91.98,91.94,4.15734335]
[1772715128718,9.782,91.987,91.94,4.15734335]
[1772715129519,9.783,91.979,91.94,4.15734335]
[1772715129910,4.15734335,91.99,91.941,3.73959909]
[1772715130115,10.10616258,92.048,91.858,163.256]
[1772715130116,4.15734335,92.01,91.951,3.73959909]
[1772715130319,3.83225156,92.012,91.97,4.15734335]
[1772715130620,3.83225156,92.01,91.97,4.15734335]
[1772715130821,3.83225156,92.01,91.961,3.73959909]
[1772715131018,7.9674774,92.045,91.923,3.73959909]
[1772715131019,3.83225156,91.999,91.923,3.73959909]
[1772715131222,3.6303045,91.989,91.93,4.15734335]
[1772715131422,3.6303045,91.979,91.93,4.15734335]
[1772715131622,3.6303045,91.979,91.923,3.73959909]
[1772715132120,3.6303045,91.979,91.92,4.15734335]
[1772715132121,3.6303045,91.979,91.926,13.61820049]
[1772715132418,3.6303045,91.979,91.93,4.15734335]
[1772715133217,13.4133045,91.979,91.93,4.15734335]
[1772715134018,3.6303045,91.979,91.931,13.61720049]
[1772715134321,3.6303045,91.979,91.931,3.82920049]
[1772715135523,7.96462679,92.022,91.915,3.82920049]
[1772715135524,7.78764785,91.97,91.915,3.82920049]
[1772715135722,3.6303045,91.969,91.92,4.15734335]
[1772715136922,3.6303045,91.986,91.931,3.82920049]
[1772715137124,3.6303045,91.986,91.94,7.98654384]
[1772715139825,3.6303045,91.986,91.943,13.48548364]
[1772715140023,3.6303045,91.986,91.943,3.69848364]
[1772715141018,3.6303045,91.986,91.951,9.786]
[1772715141320,3.39780666,92.039,91.943,3.69848364]
[1772715142329,9.778,92.029,91.954,9.785]
[1772715142522,3.39780666,92.028,91.955,3.69848364]
[1772715143422,8.91534954,92.04,91.955,3.69848364]
[1772715143423,3.39780666,92.026,91.955,3.69848364]
[1772715144428,3.39780666,92.024,91.955,3.69848364]
[1772715145125,3.39780666,92.021,91.959,3.69848364]
[1772715146229,3.39780666,92.021,91.961,3.69848364]
[1772715146726,9.779,92.019,91.965,3.69848364]
[1772715147029,3.39780666,92.018,91.965,3.69848364]
[1772715147623,3.39780666,92.039,91.965,3.69848364]
[1772715148128,172.25186605,92.103,91.93,19.577]
[1772715148129,3.39780666,92.055,91.981,3.69848364]
[1772715148527,3.80128845,92.052,91.981,3.69848364]
[1772715149522,9.776,92.044,91.99,3.93163865]
[1772715149725,3.80128845,92.052,91.99,3.93163865]
[1772715150529,9.777,92.037,91.99,3.93163865]
[1772715151026,9.778,92.029,91.99,3.93163865]
[1772715152332,8.91534954,92.08,91.99,3.93163865]
[1772715152333,3.80128845,92.045,91.99,3.93163865]
[1772715154034,3.80128845,92.045,91.993,3.93163865]
[1772715154430,3.80128845,92.06,91.993,3.93163865]
[1772715154734,3.80128845,92.06,91.98,8.91534954]
[1772715154735,3.80128845,92.06,92.004,3.93163865]
[1772715156535,7.98626356,92.089,92.006,3.93163865]
[1772715156536,13.57528845,92.059,92.006,3.93163865]
[1772715156936,3.80128845,92.058,92.006,3.93163865]
[1772715157536,3.80128845,92.058,92.007,9.78]
[1772715157934,3.80128845,92.058,92.006,3.93163865]
[1772715158535,3.80128845,92.058,91.981,3.93163865]
[1772715159538,3.80128845,92.049,91.981,3.93163865]
[1772715159839,3.80128845,92.04,91.995,9.781]
[1772715160038,3.80128845,92.04,91.981,3.93163865]
[1772715160542,4.15715169,92.02,91.981,3.93163865]
[1772715160839,3.80128845,92.029,91.981,3.93163865]
[1772715161034,3.80128845,92.027,91.981,3.93163865]
[1772715161540,4.15715169,92.02,91.981,3.93163865]
[1772715161740,9.779,92.018,91.981,3.93163865]
[1772715162636,9.779,92.015,91.966,3.93163865]
[1772715162842,4.15715169,91.98,91.93,4.15715169]
[1772715163036,4.15715169,91.98,91.92,4.15715169]
[1772715163441,4.15715169,91.97,91.92,4.15715169]
[1772715163641,4.15715169,91.96,91.91,4.15715169]
[1772715164739,4.15715169,91.96,91.911,3.93163865]
[1772715165541,9.784,91.966,91.911,3.93163865]
[1772715166436,4.15715169,91.97,91.911,3.93163865]
[1772715166837,4.15715169,91.96,91.911,3.93163865]
[1772715167347,4.15715169,91.96,91.913,3.93163865]
[1772715167546,3.80128845,91.969,91.913,3.93163865]
[1772715168142,3.80128845,91.969,91.915,3.93163865]
[1772715168347,3.80128845,91.969,91.92,4.15715169]
[1772715169045,3.80128845,91.969,91.915,3.93163865]
[1772715170352,3.80128845,91.969,91.92,4.15715169]
[1772715173049,3.80128845,91.969,91.923,9.789]
[1772715175358,4.15715169,91.99,91.954,9.785]
[1772715175554,4.15715169,92.0,91.954,9.785]
[1772715175754,4.15715169,92.0,91.9,19.583]
[1772715175755,4.15715169,91.98,91.938,9.787]
[1772715176149,4.15715169,91.97,91.938,9.787]
[1772715176552,4.16193949,91.97,91.938,9.787]
[1772715177457,7.61702468,91.97,91.938,9.787]
[1772715177659,3.45508519,91.969,91.938,9.787]
[1772715178760,3.45508519,91.969,91.922,3.67199175]
[1772715181154,3.45508519,91.969,91.864,19.591]
[1772715181155,3.45508519,92.001,91.951,3.67199175]
[1772715181363,3.45508519,92.001,91.96,4.16193949]
[1772715181556,3.45508519,92.001,91.951,3.67199175]
[1772715182158,3.45508519,91.999,91.94,4.16193949]
[1772715182358,3.45508519,91.999,91.941,3.67199175]
[1772715183463,3.45508519,91.995,91.941,3.67199175]
[1772715185164,9.782,91.992,91.941,3.67199175]
[1772715185367,3.45508519,91.995,91.941,3.67199175]
[1772715185958,9.781,91.993,91.941,3.67199175]
[1772715186755,13.23608519,91.993,91.941,3.67199175]
[1772715186956,9.782,91.985,91.941,3.67199175]
[1772715188064,3.45508519,91.992,91.941,3.67199175]
[1772715188360,3.45508519,91.992,91.924,3.67199175]
[1772715189368,9.784,91.971,91.924,3.67199175]
[1772715189966,13.23808519,91.978,91.925,9.789]
[1772715190165,3.45508519,91.977,91.926,3.67199175]
[1772715190665,3.45508519,91.977,91.931,3.67199175]
[1772715191462,3.45508519,91.999,91.934,3.67199175]
[1772715192070,3.45508519,91.999,91.937,3.67199175]
[1772715192671,3.45508519,91.997,91.95,13.45799175]
[1772715192866,3.45508519,91.997,91.951,3.67199175]
[1772715193367,3.45508519,91.997,91.952,9.786]
[1772715193571,3.45508519,91.997,91.938,3.67199175]
[1772715194374,3.45508519,91.997,91.945,9.786]
[1772715195064,3.45508519,91.997,91.951,9.786]
[1772715196076,3.45508519,91.997,91.957,9.785]
[1772715196274,3.45508519,91.997,91.951,3.67199175]
[1772715196772,3.45508519,91.997,91.944,9.787]
[1772715196973,3.45508519,91.997,91.936,3.67199175]
[1772715197367,3.45508519,91.997,91.945,3.67199175]
[1772715198373,9.779,92.011,91.947,3.67199175]
[1772715198574,3.45508519,92.015,91.947,3.67199175]
[1772715199370,3.45508519,92.015,91.959,3.77300189]
[1772715199966,3.68855818,92.013,91.959,3.77300189]
[1772715200676,3.68855818,92.004,91.959,3.77300189]
[1772715201071,9.78,92.002,91.959,3.77300189]
[1772715202280,3.68855818,92.004,91.959,3.77300189]
[1772715202477,3.68855818,92.004,91.96,4.15865963]
[1772715202680,3.68855818,92.004,91.961,3.77300189]
[1772715202880,3.68855818,92.018,91.971,3.77300189]
[1772715205077,3.68855818,91.998,91.941,3.77300189]
[1772715205476,4.15865963,92.01,91.961,3.77300189]
[1772715205682,3.68855818,92.013,91.97,4.15865963]
[1772715206380,3.68855818,92.013,91.97,7.93166152]
[1772715208278,3.69963466,92.009,91.955,3.60334355]
[1772715209380,3.69963466,92.004,91.955,3.60334355]
[1772715210376,9.781,92.0,91.955,3.60334355]
[1772715212576,3.69963466,92.004,91.955,3.60334355]
[1772715212577,9.782,91.99,91.955,3.60334355]
[1772715216281,3.69963466,91.999,91.955,3.60334355]
[1772715217880,9.781,91.997,91.955,3.60334355]
[1772715218087,3.69963466,91.996,91.955,3.60334355]
[1772715218781,3.69963466,91.994,91.95,4.15865963]
[1772715218980,3.69963466,91.994,91.941,3.60334355]
[1772715219581,3.69963466,91.994,91.95,4.15865963]
[1772715219982,3.69963466,91.994,91.951,3.60334355]
[1772715221186,9.781,92.0,91.954,3.60334355]
[1772715224494,9.781,92.0,91.957,3.60334355]
[1772715224893,13.48063466,92.0,91.957,3.60334355]
[1772715225592,3.69963466,92.0,91.961,3.60334355]
[1772715225995,3.69963466,91.999,91.948,3.60334355]
[1772715226490,9.782,91.992,91.949,13.38934355]
[1772715226694,3.69963466,91.991,91.95,3.60334355]
[1772715226895,3.69963466,91.989,91.94,4.15865963]
[1772715228391,3.69963466,91.988,91.941,9.787]
[1772715229894,3.69963466,91.988,91.938,3.60334355]
[1772715230194,3.69963466,91.988,91.93,4.15865963]
[1772715230392,3.69963466,91.988,91.94,4.15865963]
[1772715230592,8.00863564,92.011,91.904,19.582]
[1772715230593,9.78,92.005,91.961,3.88385785]
[1772715230896,13.72857997,92.005,91.961,3.88385785]
[1772715231092,9.78,92.002,91.961,3.88385785]
[1772715234297,13.72857997,92.002,91.961,3.88385785]
[1772715235198,9.781,91.999,91.961,3.88385785]
[1772715236590,3.94857997,91.998,91.961,3.88385785]
[1772715236997,3.94857997,91.998,91.959,9.785]
[1772715237400,3.94857997,91.994,91.951,9.786]
[1772715238098,9.782,91.984,91.951,3.88385785]
[1772715238302,3.94857997,91.989,91.951,3.88385785]
[1772715238607,4.15920898,92.0,91.951,3.88385785]
[1772715238802,3.94857997,92.001,91.951,3.88385785]
[1772715240205,9.782,91.991,91.951,3.88385785]
[1772715240999,9.782,91.984,91.951,3.88385785]
[1772715244301,4.15920898,92.0,91.951,3.88385785]
[1772715244302,9.783,91.978,91.951,3.88385785]
[1772715244509,4.15920898,92.0,91.951,3.88385785]
[1772715245203,8.10778895,92.0,91.951,3.88385785]
[1772715245401,3.94857997,92.009,91.961,3.88385785]
[1772715245910,8.01690344,92.019,91.971,3.88385785]
[1772715246100,3.94857997,92.021,91.971,3.88385785]
[1772715246599,9.779,92.02,91.971,3.88385785]
[1772715246801,13.72757997,92.02,91.971,3.88385785]
[1772715247208,17.88678895,92.02,91.971,3.88385785]
[1772715247406,3.94857997,91.999,91.95,4.15920898]
[1772715247610,3.94857997,91.999,91.951,3.88385785]
[1772715247909,3.94857997,91.999,91.902,266.6563243]
[1772715247910,4.15920898,92.01,91.961,3.88385785]
[1772715250610,3.94857997,92.007,91.961,3.88385785]
[1772715251913,3.94857997,92.007,91.963,3.88385785]
[1772715253414,4.15920898,92.02,91.965,3.88385785]
[1772715253615,4.15920898,92.02,91.971,3.88385785]
[1772715253817,3.94857997,92.045,91.991,3.88385785]
[1772715254019,3.94857997,92.039,91.98,4.15920898]
[1772715254621,3.94857997,92.039,91.98,8.04306683]
[1772715254919,3.94857997,92.029,91.983,3.88385785]
[1772715255116,3.94857997,92.019,91.971,3.88385785]
[1772715255316,3.94857997,92.009,91.96,4.15920898]
[1772715255620,3.94857997,92.007,91.967,9.784]
[1772715256218,3.94857997,92.025,91.98,4.15920898]
[1772715256616,3.94857997,92.025,91.979,9.783]
[1772715256814,3.94857997,92.019,91.971,3.88385785]
[1772715257719,3.94857997,92.009,91.972,9.784]
[1772715258320,4.15920898,92.02,91.979,9.783]
[1772715258925,8.1089444,92.04,91.988,3.9130816]
[1772715259224,3.94973542,92.057,92.01,4.15920898]
[1772715260119,3.94973542,92.057,92.014,3.9130816]
[1772715260323,3.94973542,92.057,92.001,3.9130816]
[1772715261329,10.10616258,92.104,91.905,152.307]
[1772715261330,3.94973542,92.046,91.991,13.6950816]
[1772715261823,3.94973542,92.046,91.998,9.781]
[1772715262329,3.94973542,92.044,91.998,9.781]
[1772715262729,3.94973542,92.044,92.006,9.78]
[1772715264427,3.94973542,92.044,92.014,9.779]
[1772715264829,3.94973542,92.044,92.0,8.07229058]
[1772715265029,3.94973542,92.044,92.005,9.78]
[1772715265532,3.94973542,92.044,92.011,9.779]
[1772715266132,3.94973542,92.044,91.923,33.74447252]
[1772715266133,3.94973542,92.039,91.993,9.781]
[1772715266434,3.94973542,92.039,91.987,3.9130816]
[1772715266631,3.94973542,92.039,91.992,9.781]
[1772715268335,3.59819694,92.029,91.992,9.781]
[1772715269130,3.59819694,92.029,91.986,3.61159547]
[1772715270438,3.59819694,92.029,91.987,9.782]
[1772715271434,1.89150481,92.057,91.994,3.61159547]
[1772715271435,3.59819694,92.053,91.994,3.61159547]
[1772715271635,3.59819694,92.053,92.001,3.61159547]
[1772715272241,3.59819694,92.053,92.013,9.779]
[1772715272539,3.59819694,92.07,92.02,4.15920898]
[1772715272742,3.59819694,92.091,92.05,4.15920898]
[1772715273037,4.15920898,92.07,92.03,3.61159547]
[1772715273340,3.59819694,92.069,92.011,3.61159547]
[1772715274437,13.37119694,92.069,92.028,9.778]
[1772715274639,4.15920898,92.06,92.028,9.778]
[1772715274836,4.15920898,92.06,92.011,3.61159547]
[1772715275840,4.15920898,92.06,92.027,9.778]
[1772715277234,4.15920898,92.06,92.011,3.61159547]
[1772715277845,3.59819694,92.069,92.011,3.61159547]
[1772715278442,3.59819694,92.069,92.027,9.778]
[1772715278843,3.59819694,92.069,92.011,3.61159547]
[1772715279045,4.15920898,92.06,92.026,9.778]
[1772715279239,3.59819694,92.069,92.026,9.778]
[1772715281737,3.59819694,92.069,92.032,9.777]
[1772715282138,3.59819694,92.069,92.024,3.61159547]
[1772715282850,3.59819694,92.069,92.025,9.778]
[1772715283651,3.59819694,92.069,92.026,3.61159547]
[1772715283846,4.15920898,92.07,92.03,3.61159547]
[1772715284146,3.59819694,92.093,92.05,7.77080445]
[1772715284347,3.59819694,92.109,92.076,9.773]
[1772715284554,3.59819694,92.123,92.08,4.15920898]
[1772715284748,3.59819694,92.123,92.08,7.77080445]
[1772715285144,9.767,92.129,92.083,13.38359547]
[1772715286047,9.767,92.129,92.083,3.61159547]
[1772715286251,9.768,92.124,92.083,3.61159547]
[1772715286456,4.15920898,92.12,92.083,3.61159547]
[1772715286955,3.59819694,92.117,92.061,3.61159547]
[1772715287155,4.15920898,92.11,92.061,3.61159547]
[1772715287757,3.59819694,92.117,92.061,3.61159547]
[1772715288454,3.59819694,92.117,92.064,3.61159547]
[1772715289256,9.768,92.115,92.064,3.61159547]
[1772715289655,9.768,92.115,92.067,3.87873253]
[1772715290556,4.15920898,92.1,92.051,3.87873253]
[1772715291261,3.62405019,92.099,92.051,3.87873253]
[1772715292154,13.92820898,92.11,92.06,8.03794151]
[1772715293656,3.62405019,92.116,92.07,4.15920898]
[1772715293856,4.15920898,92.11,92.061,3.87873253]
[1772715294059,3.62405019,92.109,92.061,3.87873253]
[1772715294261,4.15920898,92.1,92.061,3.87873253]
[1772715294460,3.62405019,92.099,92.049,3.87873253]
[1772715294662,4.15920898,92.09,92.049,3.87873253]
[1772715295555,9.771,92.092,92.049,3.87873253]
[1772715295959,4.15920898,92.11,92.05,4.15920898]
[1772715296159,4.15920898,92.11,92.051,3.87873253]
[1772715296858,3.62405019,92.117,92.067,3.87873253]
[1772715297361,9.769,92.111,92.067,3.87873253]
[1772715298660,4.14901882,92.11,92.067,3.87873253]
[1772715298862,4.14901882,92.1,92.057,9.774]
[1772715299058,4.14901882,92.1,92.058,3.87873253]
[1772715299252,7.77306901,92.11,92.058,3.87873253]
[1772715299457,9.769,92.107,92.06,4.14901882]
[1772715299656,9.769,92.107,92.06,8.02775135]
[1772715300465,9.769,92.107,92.061,3.87873253]
[1772715301567,3.62405019,92.109,92.061,3.87873253]
[1772715302456,9.769,92.108,92.062,3.87873253]
[1772715302663,3.62405019,92.107,92.062,3.87873253]
[1772715302855,4.14901882,92.11,92.062,3.87873253]
[1772715303759,3.62405019,92.139,92.071,3.87873253]
[1772715303962,3.62405019,92.153,92.1,4.14901882]
[1772715304156,3.62405019,92.153,92.1,8.02775135]
[1772715304361,3.62405019,92.153,92.034,152.094]
[1772715304362,3.62405019,92.153,92.11,4.14901882]
[1772715304558,3.62405019,92.153,92.101,3.87873253]
[1772715305267,4.14901882,92.15,92.101,3.87873253]
[1772715305565,3.62405019,92.149,92.101,3.87873253]
[1772715305769,3.62405019,92.129,92.086,3.87873253]
[1772715306965,1.88909698,92.177,92.047,19.552]
[1772715306966,3.62405019,92.145,92.091,3.87873253]
[1772715307267,3.62405019,92.145,92.101,3.87873253]
[1772715307662,3.62405019,92.139,92.086,3.87873253]
[1772715309159,9.767,92.131,92.086,3.87873253]
[1772715309564,3.62405019,92.129,92.086,3.87873253]
[1772715309765,3.62405019,92.129,92.072,3.87873253]
[1772715309969,3.62405019,92.119,92.072,3.87873253]
[1772715310171,3.62405019,92.119,91.991,26.72249589]
[1772715310172,4.14901882,92.1,92.055,3.87873253]
[1772715310575,9.77,92.101,92.057,9.775]
[1772715310771,9.77,92.101,92.058,3.87873253]
[1772715311472,9.771,92.093,92.058,3.87873253]
[1772715311668,3.62405019,92.109,92.058,3.87873253]
[1772715311969,3.62405019,92.109,92.06,8.02775135]
[1772715312572,3.62405019,92.109,92.06,3.87873253]
[1772715313370,9.77,92.101,92.06,3.87873253]
[1772715314670,9.77,92.101,92.06,8.02775135]
[1772715314872,3.62405019,92.109,92.06,8.02775135]
[1772715314873,13.39305019,92.109,92.062,3.87873253]
[1772715315468,13.39305019,92.109,92.024,19.557]
[1772715315469,9.768,92.119,92.071,3.87873253]
[1772715315676,9.768,92.119,92.08,4.14901882]
[1772715315970,9.769,92.111,92.071,3.87873253]
[1772715316171,3.62405019,92.109,92.052,3.87873253]
[1772715316375,4.14901882,92.1,92.052,3.87873253]
[1772715316674,3.62405019,92.099,92.052,3.87873253]
[1772715318483,9.771,92.092,92.052,3.87873253]
[1772715319775,9.772,92.086,92.04,4.14901882]
[1772715320574,9.772,92.086,92.04,7.83750702]
[1772715321983,9.771,92.094,92.043,3.6884882]
[1772715322184,9.771,92.094,92.05,4.14901882]
[1772715322786,9.771,92.088,92.05,4.14901882]
[1772715323291,9.771,92.088,92.043,3.6884882]
[1772715323485,3.89226513,92.089,92.043,3.6884882]
[1772715324187,4.14901882,92.06,92.011,3.6884882]
[1772715324388,8.04128395,92.06,92.011,3.6884882]
[1772715324691,9.773,92.073,92.025,3.6884882]
[1772715325383,3.89226513,92.077,92.03,4.14901882]
[1772715326585,8.71721808,92.12,91.947,10.88]
[1772715326586,4.14901882,92.06,92.0,4.14901882]
[1772715326781,3.89226513,92.059,92.0,4.14901882]
[1772715327489,3.89226513,92.059,92.003,3.6884882]
[1772715327988,4.14901882,92.05,92.003,3.6884882]
[1772715328384,9.776,92.046,92.003,3.6884882]
[1772715328779,4.14901882,92.05,92.003,3.6884882]
[1772715328985,3.89226513,92.059,92.003,3.6884882]
[1772715329885,4.14901882,92.05,92.003,3.6884882]
[1772715330478,8.02292067,92.05,92.003,3.6884882]
[1772715330680,3.87390185,92.049,92.003,3.6884882]
[1772715331089,9.776,92.047,92.003,3.6884882]
[1772715331291,3.87390185,92.049,92.003,3.6884882]
[1772715331691,9.776,92.047,92.003,3.6884882]
[1772715332089,4.14901882,92.05,92.003,3.6884882]
[1772715332985,13.64890185,92.049,91.968,19.569]
[1772715333192,4.14901882,92.03,91.986,3.91932679]
[1772715334190,3.87390185,92.039,91.99,4.14901882]
[1772715334394,3.87390185,92.056,92.001,3.91932679]
[1772715335296,3.87390185,92.101,92.02,4.14901882]
[1772715335500,8.02292067,92.07,92.02,4.14901882]
[1772715335699,3.87390185,92.057,92.012,9.779]
[1772715335896,9.774,92.058,92.013,3.91932679]
[1772715337798,19.54,92.102,92.0,8.06834561]
[1772715337799,4.14901882,92.05,92.0,8.06834561]
[1772715337999,3.87390185,92.049,92.0,3.91932679]
[1772715338798,4.14901882,92.05,92.002,3.91932679]
[1772715338998,8.02292067,92.06,92.002,3.91932679]
[1772715339295,3.87390185,92.06,92.011,3.91932679]
[1772715340595,9.774,92.059,92.021,3.91932679]
[1772715345402,9.775,92.053,92.021,3.91932679]
[1772715345607,9.775,92.053,92.01,4.14901882]
[1772715346106,3.87390185,92.057,92.012,3.91932679]
[1772715347403,9.775,92.055,92.012,3.91932679]
[1772715348307,9.774,92.062,92.021,3.91932679]
[1772715350209,4.14901882,92.06,92.01,4.14901882]
[1772715350509,3.78473248,92.059,92.003,3.93258132]
[1772715351016,3.78473248,92.059,92.005,3.93258132]
[1772715351209,3.78473248,92.059,92.01,4.14901882]
[1772715351405,3.78473248,92.059,92.02,4.14901882]
[1772715351611,3.78473248,92.079,92.021,3.93258132]
[1772715352405,3.78473248,92.069,92.021,3.93258132]
[1772715352611,9.774,92.065,92.021,3.93258132]
[1772715352813,3.78473248,92.059,92.005,3.93258132]
[1772715353412,3.78473248,92.049,92.005,3.93258132]
[1772715353613,13.56073248,92.04,91.99,4.14901882]
[1772715355115,13.56073248,92.04,91.99,8.08160014]
[1772715355314,17.7097513,92.04,91.99,8.08160014]
[1772715356717,9.777,92.032,91.99,8.08160014]
[1772715356915,3.78473248,92.029,91.98,4.14901882]
[1772715357709,3.78473248,92.049,91.991,3.93258132]
[1772715358116,3.78473248,92.039,91.991,3.93258132]
[1772715359521,9.777,92.034,91.991,3.93258132]
[1772715360526,3.78473248,92.039,91.991,3.93258132]
[1772715361526,3.78473248,92.039,91.992,9.781]
[1772715361921,3.78473248,92.039,91.993,3.93258132]
[1772715362530,8.72294133,92.085,91.931,3.93258132]
[1772715362531,4.15497768,92.02,91.931,3.93258132]
[1772715362724,4.15497768,92.02,91.971,3.93258132]
[1772715362924,7.93971016,92.02,91.971,3.93258132]
[1772715363431,3.78473248,92.02,91.971,3.93258132]